fUSD/lending_fUSD_20250103
["ID","MTS","AMOUNT","RATE_DAILY","PERIOD"]
[347536999,1735906253369,-562.57,9.259e-05,2]
[347537000,1735906253377,-500.0,9.259e-05,2]
[347537001,1735906253386,-49.11633153,9.259e-05,2]
[347537002,1735906253397,-353.526063,9.259e-05,2]
[347537003,1735906253408,-755.60676301,9.259e-05,2]
[347537004,1735906253433,-386.3540003,9.259e-05,2]
[347537005,1735906253444,-646.28,9.259e-05,2]
[347537006,1735906253455,-376.15684216,9.259e-05,2]
[347537007,1735906253464,-20.50226701,9.259e-05,2]
[347537008,1735906253474,-4115.73773299,9.259e-05,2]
[347537009,1735906253483,-500.0,9.259e-05,2]
[347537010,1735906253492,-521.76,9.259e-05,2]
[347537011,1735906253501,-500.0,9.259e-05,2]
[347537012,1735906253510,-241.61,9.259e-05,2]
[347537013,1735906253519,-1929.53,9.259e-05,2]
[347537014,1735906253775,-5635.90064464,9.259e-05,2]
[347537015,1735906253786,-2648.07935536,9.259e-05,2]
[347537016,1735906253796,-600.64,9.259e-05,2]
[347537017,1735906253805,-577.52,9.259e-05,2]
[347537018,1735906253815,-2610.99,9.259e-05,2]
[347537019,1735906253825,-740.24,9.259e-05,2]
[347537020,1735906253835,-771.39,9.259e-05,2]
[347537021,1735906253843,-202.41,9.259e-05,2]
[347537022,1735906253855,-5040.34864357,9.259e-05,2]
[347537023,1735906253878,-2105.73135643,9.259e-05,2]
[347537024,1735906253887,-500.0,9.259e-05,2]
[347537025,1735906253896,-390.88730138,9.259e-05,2]
[347537026,1735906456742,500.0,1e-05,2]
[347537027,1735906503797,182.0,1e-05,30]
[347537028,1735906504135,182.0,0.000115,30]
[347537034,1735906570603,10000.0,0.0002,120]
[347537035,1735906598611,10000.0,0.0002,120]
[347537036,1735906630265,10000.0,0.0002,120]
[347537037,1735906646961,10000.0,0.0002,120]
[347537046,1735906804542,182.27539256,1e-05,30]
[347537047,1735906918524,166.86,6.51e-05,2]
[347537048,1735906982078,10000.0,0.0001501,29]
[347537049,1735907013688,10000.0,0.0001501,29]
[347537050,1735907042675,10000.0,0.0001501,29]
[347537052,1735907048031,235.40298686,0.0001501,29]
[347537053,1735907074950,10000.0,0.0001312,24]
[347537054,1735907103564,150.0,1e-05,30]
[347537055,1735907103721,150.0,4e-05,30]
[347537056,1735907104547,150.0,7e-05,30]
[347537057,1735907104898,150.0,0.0001,30]
[347537058,1735907105227,150.0,0.00013,30]
[347537059,1735907120665,40000.0,0.0001312,24]
[347537063,1735907143242,50000.0,0.0001312,24]
[347537065,1735907173059,35000.0,0.0001312,24]
[347537066,1735907173092,15000.0,0.0001312,24]
[347537067,1735907227063,50000.0,0.0001312,24]
[347537068,1735907278835,50000.0,0.00014022,24]
[347537069,1735907300871,1324.99995894,0.00012,30]
[347537070,1735907302913,50000.0,0.00014022,24]
[347537071,1735907311025,150.0,0.00019583,120]
[347537074,1735907353523,50000.0,0.00014022,24]
[347537075,1735907358352,-300.0,7.964e-05,2]
[347537076,1735907358373,-71.23309408,7.965e-05,2]
[347537077,1735907378771,50000.0,0.00014022,24]
[347537078,1735907385928,33675.00004106,0.00014022,24]
[347537079,1735907412923,50000.0,0.0001312,24]
[347537110,1735907427563,50000.0,0.0001312,24]
[347537122,1735907432205,-300.0,7.964e-05,2]
[347537123,1735907432215,-15.56130515,7.965e-05,2]
[347537124,1735907432261,-23813.20560077,7.965e-05,2]
[347537125,1735907432271,-1243.37,7.971e-05,2]
[347537126,1735907432281,-1741.87,8.12e-05,2]
[347537127,1735907432290,-1500.0,8.12e-05,2]
[347537128,1735907432299,-500.0,8.12e-05,2]
[347537129,1735907432310,-2000.0,8.161e-05,2]
[347537130,1735907432319,-1112.47,8.18e-05,2]
[347537131,1735907432329,-3047.86,8.219e-05,2]
[347537132,1735907432338,-104.51980723,8.219e-05,2]
[347537133,1735907432351,-895.48019277,8.219e-05,2]
[347537135,1735907432361,-1564.52009478,8.219e-05,2]
[347537137,1735907432372,-446.26990522,8.219e-05,2]
[347537139,1735907432381,-250.0,8.219e-05,2]
[347537140,1735907432390,-160.31,8.238e-05,2]
[347537141,1735907432402,-413.78,8.268e-05,2]
[347537142,1735907432412,-166.74,8.305e-05,2]
[347537144,1735907432421,-250.0,8.371e-05,2]
[347537146,1735907432431,-250.0,8.625e-05,2]
[347537147,1735907432440,-201.09,8.737e-05,2]
[347537148,1735907432448,-1799.25133939,8.767e-05,2]
[347537149,1735907432460,-652.56,8.767e-05,2]
[347537150,1735907432977,-9960.68866061,8.767e-05,2]
[347537151,1735907432987,-2479.4673,8.883e-05,2]
[347537152,1735907432997,-400.0,8.9e-05,3]
[347537153,1735907433006,-500.0,8.904e-05,2]
[347537154,1735907433015,-890.59481991,8.958e-05,2]
[347537155,1735907433025,-1229.93,8.983e-05,2]
[347537156,1735907433038,-500.0,8.983e-05,2]
[347537157,1735907433050,-864.7,8.983e-05,2]
[347537158,1735907433060,-500.0,8.983e-05,2]
[347537159,1735907433071,-759.96,8.983e-05,2]
[347537160,1735907433082,-795.59,8.983e-05,2]
[347537161,1735907433092,-500.0,8.983e-05,2]
[347537162,1735907433103,-500.0,8.983e-05,2]
[347537163,1735907433115,-500.0,8.983e-05,2]
[347537164,1735907433125,-843.94,8.983e-05,2]
[347537165,1735907433135,-500.0,8.983e-05,2]
[347537166,1735907433145,-1030.09,8.983e-05,2]
[347537167,1735907433155,-784.8,8.983e-05,2]
[347537168,1735907433164,-814.45,8.983e-05,2]
[347537169,1735907433174,-2023.41,8.983e-05,2]
[347537170,1735907433184,-622.55,8.983e-05,2]
[347537171,1735907433193,-500.0,8.983e-05,2]
[347537172,1735907433203,-690.32,8.983e-05,2]
[347537173,1735907433214,-500.0,8.983e-05,2]
[347537174,1735907433224,-505.77,8.983e-05,2]
[347537175,1735907433234,-500.0,8.983e-05,2]
[347537176,1735907433244,-1525.51,8.983e-05,2]
[347537177,1735907433255,-500.0,8.983e-05,2]
[347537178,1735907433265,-723.43,8.983e-05,2]
[347537179,1735907433275,-500.0,8.983e-05,2]
[347537180,1735907433285,-947.46,8.983e-05,2]
[347537181,1735907433294,-888.06,8.983e-05,2]
[347537182,1735907433304,-547.19,8.983e-05,2]
[347537183,1735907433314,-815.44,8.983e-05,2]
[347537184,1735907433325,-1924.38,8.983e-05,2]
[347537185,1735907433335,-500.0,8.983e-05,2]
[347537186,1735907433345,-681.59,8.983e-05,2]
[347537187,1735907433354,-500.0,8.983e-05,2]
[347537188,1735907433364,-500.0,8.983e-05,2]
[347537189,1735907433374,-453.65439251,8.983e-05,2]
[347537191,1735907437827,-393.69097478,7.954e-05,2]
[347537192,1735907437884,-1988.94902522,7.954e-05,2]
[347537193,1735907437893,-46.34560749,8.983e-05,2]
[347537194,1735907437903,-384.84791018,8.983e-05,2]
[347537195,1735907437942,-115.15208982,8.983e-05,2]
[347537196,1735907437951,-4137.22,8.983e-05,2]
[347537197,1735907437961,-500.0,8.983e-05,2]
[347537198,1735907437970,-404.82038873,8.983e-05,2]
[347537199,1735907437980,-390.54769059,8.983e-05,2]
[347537200,1735907437991,-109.45230941,8.983e-05,2]
[347537201,1735907438000,-528.49,8.983e-05,2]
[347537202,1735907438010,-929.49,8.983e-05,2]
[347537203,1735907438019,-500.0,8.983e-05,2]
[347537204,1735907438028,-2422.29,8.983e-05,2]
[347537205,1735907438041,-500.0,8.983e-05,2]
[347537206,1735907438051,-663.42,8.983e-05,2]
[347537207,1735907438060,-500.0,8.983e-05,2]
[347537208,1735907438069,-925.7,8.983e-05,2]
[347537209,1735907438080,-158.38288149,8.983e-05,2]
[347537210,1735907438091,-351.89711851,8.983e-05,2]
[347537211,1735907438101,-44.44289485,8.983e-05,2]
[347537213,1735907438161,-455.55710515,8.983e-05,2]
[347537214,1735907438170,-500.0,8.983e-05,2]
[347537215,1735907438179,-994.62,8.983e-05,2]
[347537217,1735907438188,-518.76,8.983e-05,2]
[347537218,1735907438197,-706.48,8.983e-05,2]
[347537219,1735907438207,-2082.78,8.983e-05,2]
[347537220,1735907438217,-4734.79,8.983e-05,2]
[347537221,1735907438226,-1781.623076,8.983e-05,2]
[347537222,1735907438234,-99.2176428,8.983e-05,2]
[347537224,1735907438246,-400.7823572,8.983e-05,2]
[347537225,1735907438255,-500.0,8.983e-05,2]
[347537226,1735907438264,-500.0,8.983e-05,2]
[347537227,1735907438274,-1113.64,8.983e-05,2]
[347537228,1735907438283,-2338.41,8.983e-05,2]
[347537229,1735907438293,-1785.935356,8.983e-05,2]
[347537230,1735907438302,-811.0,8.983e-05,2]
[347537232,1735907438311,-500.0,8.983e-05,2]
[347537234,1735907438320,-500.0,8.983e-05,2]
[347537236,1735907438329,-500.0,8.983e-05,2]
[347537238,1735907438338,-1237.42,8.983e-05,2]
[347537240,1735907438347,-698.72,8.983e-05,2]
[347537242,1735907438356,-522.81,8.983e-05,2]
[347537244,1735907438366,-982.59,8.983e-05,2]
[347537245,1735907438375,-2191.56,8.983e-05,2]
[347537247,1735907438385,-1818.64,8.983e-05,2]
[347537249,1735907438394,-500.0,8.983e-05,2]
[347537251,1735907438404,-616.38,8.983e-05,2]
[347537252,1735907438413,-636.22,8.983e-05,2]
[347537253,1735907438422,-3967.06,8.983e-05,2]
[347537254,1735907438431,-714.67,8.983e-05,2]
[347537255,1735907438441,-500.0,8.983e-05,2]
[347537256,1735907438450,-669.69,8.983e-05,2]
[347537257,1735907438459,-618.55,8.983e-05,2]
[347537258,1735907438468,-1285.94,8.983e-05,2]
[347537259,1735907438478,-787.69,8.983e-05,2]
[347537260,1735907438487,-753.74,8.983e-05,2]
[347537261,1735907438495,-3138.7,8.983e-05,2]
[347537262,1735907438505,-5078.65,8.983e-05,2]
[347537263,1735907438514,-500.0,8.983e-05,2]
[347537264,1735907438816,-1866.29,8.983e-05,2]
[347537265,1735907438825,-1091.84,8.983e-05,2]
[347537266,1735907438835,-2849.98,8.983e-05,2]
[347537267,1735907438844,-500.0,8.983e-05,2]
[347537268,1735907438853,-1868.94,8.983e-05,2]
[347537269,1735907438862,-6102.94,8.983e-05,2]
[347537270,1735907438871,-656.42,8.983e-05,2]
[347537271,1735907438880,-935.06,8.983e-05,2]
[347537272,1735907438889,-1061.48,8.983e-05,2]
[347537273,1735907438899,-920.01,8.983e-05,2]
[347537274,1735907438908,-500.0,8.983e-05,2]
[347537275,1735907438917,-1220.37,8.983e-05,2]
[347537276,1735907438928,-500.0,8.983e-05,2]
[347537277,1735907438937,-500.0,8.983e-05,2]
[347537278,1735907438946,-500.0,8.983e-05,2]
[347537279,1735907438955,-951.54,8.983e-05,2]
[347537280,1735907438964,-849.63,8.983e-05,2]
[347537281,1735907438973,-485.82148488,8.983e-05,2]
[347537282,1735907438985,-1626.60851512,8.983e-05,2]
[347537283,1735907438995,-1169.2,8.983e-05,2]
[347537284,1735907439004,-590.01,8.983e-05,2]
[347537285,1735907439013,-515.27,8.983e-05,2]
[347537286,1735907439022,-1106.85,8.983e-05,2]
[347537287,1735907439033,-359.54155708,8.983e-05,2]
[347537288,1735907439044,-1499.91,8.983e-05,2]
[347537289,1735907439053,-502.26868852,8.983e-05,2]
[347537290,1735907439064,-1841.11131148,8.983e-05,2]
[347537291,1735907439073,-589.92,8.983e-05,2]
[347537292,1735907439083,-2439.09,8.983e-05,2]
[347537293,1735907439093,-2178.55,8.983e-05,2]
[347537294,1735907439101,-806.07,8.983e-05,2]
[347537295,1735907439112,-635.31184893,8.983e-05,2]
[347537302,1735907439842,-979.02219795,8.983e-05,2]
[347537309,1735907439900,-599.87595312,8.983e-05,2]
[347537311,1735907439910,-1208.47,8.983e-05,2]
[347537313,1735907439919,-3722.2,8.983e-05,2]
[347537315,1735907439928,-3799.15,8.983e-05,2]
[347537317,1735907439938,-3020.33,8.983e-05,2]
[347537319,1735907439947,-632.1,8.983e-05,2]
[347537321,1735907439957,-2940.87,8.983e-05,2]
[347537323,1735907439966,-1861.71,8.983e-05,2]
[347537324,1735907439975,-4089.64,8.983e-05,2]
[347537326,1735907439985,-3262.15,8.983e-05,2]
[347537328,1735907439994,-2155.13,8.983e-05,2]
[347537330,1735907440004,-2740.75,8.983e-05,2]
[347537332,1735907440013,-1358.37,8.983e-05,2]
[347537334,1735907440023,-1534.06,8.983e-05,2]
[347537336,1735907440034,-1651.35,8.983e-05,2]
[347537338,1735907440044,-5406.07,8.983e-05,2]
[347537339,1735907440055,-6885.9,8.983e-05,2]
[347537340,1735907440065,-500.0,8.983e-05,2]
[347537341,1735907440075,-500.0,8.983e-05,2]
[347537342,1735907440085,-828.71427331,8.983e-05,2]
[347537343,1735907440097,-121.83572669,8.983e-05,2]
[347537344,1735907440106,-500.0,8.983e-05,2]
[347537345,1735907440115,-335.24452638,8.983e-05,2]
[347537346,1735907440232,-164.75547362,8.983e-05,2]
[347537347,1735907440242,-500.0,8.983e-05,2]
[347537348,1735907440251,-500.0,8.983e-05,2]
[347537349,1735907440260,-698.41478638,8.983e-05,2]
[347537350,1735907440271,-95.57521362,8.983e-05,2]
[347537351,1735907440280,-167.79160638,8.983e-05,2]
[347537352,1735907440292,-332.20839362,8.983e-05,2]
[347537353,1735907440301,-500.0,8.983e-05,2]
[347537355,1735907440310,-955.45,8.983e-05,2]
[347537356,1735907440319,-878.84,8.983e-05,2]
[347537357,1735907440328,-790.49949417,8.983e-05,2]
[347537358,1735907440342,-324.22562728,8.983e-05,2]
[347537359,1735907440354,-698.669908,8.983e-05,2]
[347537360,1735907440365,-519.65,8.983e-05,2]
[347537361,1735907440376,-257.79497055,8.983e-05,2]
[347537362,1735907440385,-67.86002945,8.983e-05,2]
[347537363,1735907440396,-1916.15072828,8.983e-05,2]
[347537375,1735907442951,-325.00924227,8.983e-05,2]
[347537376,1735907442961,-500.0,8.983e-05,2]
[347537377,1735907442970,-1054.6,8.983e-05,2]
[347537378,1735907442979,-500.0,8.983e-05,2]
[347537379,1735907442989,-500.0,8.983e-05,2]
[347537380,1735907442998,-6453.2,8.983e-05,2]
[347537381,1735907443007,-500.0,8.983e-05,2]
[347537382,1735907443017,-500.0,8.983e-05,2]
[347537383,1735907443026,-500.0,8.983e-05,2]
[347537384,1735907443039,-500.0,8.983e-05,2]
[347537386,1735907443048,-925.56,8.983e-05,2]
[347537388,1735907443057,-768.3,8.983e-05,2]
[347537389,1735907443066,-2799.68,8.983e-05,2]
[347537390,1735907443074,-3791.55,8.983e-05,2]
[347537391,1735907443086,-500.0,8.983e-05,2]
[347537392,1735907443095,-731.03,8.983e-05,2]
[347537393,1735907443105,-500.0,8.983e-05,2]
[347537394,1735907443114,-503.44415425,8.983e-05,2]
[347537395,1735907443124,-500.0,8.983e-05,2]
[347537396,1735907443133,-784.39,8.983e-05,2]
[347537397,1735907443142,-500.0,8.984e-05,2]
[347537398,1735907443151,-500.0,8.984e-05,2]
[347537399,1735907443160,-468.85502308,8.984e-05,2]
[347537400,1735907443169,-500.0,8.984e-05,2]
[347537401,1735907443179,-500.0,8.984e-05,2]
[347537402,1735907443188,-500.0,8.984e-05,2]
[347537403,1735907443197,-500.0,8.984e-05,2]
[347537404,1735907443206,-500.0,8.984e-05,2]
[347537405,1735907443215,-500.0,8.984e-05,2]
[347537406,1735907443224,-500.0,8.984e-05,2]
[347537407,1735907443233,-500.0,8.984e-05,2]
[347537408,1735907443242,-500.0,8.984e-05,2]
[347537409,1735907443251,-500.0,8.984e-05,2]
[347537410,1735907443260,-500.0,8.984e-05,2]
[347537411,1735907443269,-523.85950343,8.984e-05,2]
[347537412,1735907443278,-500.0,8.984e-05,2]
[347537413,1735907443287,-500.0,8.984e-05,2]
[347537415,1735907443296,-500.0,8.984e-05,2]
[347537416,1735907443305,-500.0,8.984e-05,2]
[347537417,1735907443314,-500.0,8.984e-05,2]
[347537418,1735907443323,-500.0,8.984e-05,2]
[347537419,1735907443333,-500.0,8.984e-05,2]
[347537420,1735907443342,-396.52346096,8.984e-05,2]
[347537421,1735907443351,-500.0,8.984e-05,2]
[347537423,1735907443360,-780.13,8.984e-05,2]
[347537424,1735907443369,-500.0,8.984e-05,2]
[347537425,1735907443378,-525.54,8.984e-05,2]
[347537426,1735907443387,-500.0,8.984e-05,2]
[347537427,1735907443396,-500.0,8.984e-05,2]
[347537428,1735907443405,-613.55,8.984e-05,2]
[347537429,1735907443414,-500.0,8.984e-05,2]
[347537431,1735907443423,-500.0,8.984e-05,2]
[347537432,1735907443432,-500.0,8.984e-05,2]
[347537433,1735907443442,-500.0,8.984e-05,2]
[347537434,1735907443451,-500.0,8.984e-05,2]
[347537435,1735907443461,-500.0,8.984e-05,2]
[347537436,1735907443470,-500.0,8.984e-05,2]
[347537437,1735907443479,-500.0,8.984e-05,2]
[347537438,1735907443488,-500.0,8.984e-05,2]
[347537439,1735907443498,-500.0,8.984e-05,2]
[347537440,1735907443507,-500.0,8.984e-05,2]
[347537441,1735907443517,-783.63,8.984e-05,2]
[347537442,1735907443528,-500.0,8.984e-05,2]
[347537443,1735907443538,-500.0,8.984e-05,2]
[347537444,1735907443547,-500.0,8.984e-05,2]
[347537445,1735907443556,-837.17,8.984e-05,2]
[347537446,1735907443566,-500.0,8.984e-05,2]
[347537447,1735907443575,-500.0,8.984e-05,2]
[347537448,1735907443585,-500.0,8.984e-05,2]
[347537449,1735907443595,-637.08,8.984e-05,2]
[347537450,1735907443604,-500.0,8.984e-05,2]
[347537451,1735907443614,-500.0,8.984e-05,2]
[347537452,1735907443623,-576.58,8.984e-05,2]
[347537453,1735907443633,-54.62654601,8.984e-05,2]
[347537454,1735907444120,-445.37345399,8.984e-05,2]
[347537455,1735907444130,-278.68221183,8.984e-05,2]
[347537456,1735907444139,-225.04875418,8.984e-05,2]
[347537457,1735907444253,-274.95124582,8.984e-05,2]
[347537458,1735907444262,-225.04875418,8.984e-05,2]
[347537459,1735907444343,-274.95124582,8.984e-05,2]
[347537460,1735907444352,-512.42,8.984e-05,2]
[347537461,1735907444362,-500.0,8.984e-05,2]
[347537462,1735907444371,-500.0,8.984e-05,2]
[347537463,1735907444380,-500.0,8.984e-05,2]
[347537464,1735907444663,-747.79,8.984e-05,2]
[347537465,1735907444673,-500.0,8.984e-05,2]
[347537466,1735907444682,-500.0,8.984e-05,2]
[347537467,1735907444693,-500.0,8.984e-05,2]
[347537468,1735907444702,-500.0,8.984e-05,2]
[347537469,1735907444711,-500.0,8.984e-05,2]
[347537470,1735907444720,-500.0,8.984e-05,2]
[347537471,1735907444729,-500.0,8.984e-05,2]
[347537472,1735907444739,-500.0,8.984e-05,2]
[347537473,1735907444749,-500.0,8.984e-05,2]
[347537474,1735907444759,-500.0,8.984e-05,2]
[347537475,1735907444768,-790.81,8.984e-05,2]
[347537476,1735907444777,-500.0,8.984e-05,2]
[347537477,1735907444786,-500.0,8.984e-05,2]
[347537478,1735907444796,-500.0,8.984e-05,2]
[347537479,1735907444805,-500.0,8.984e-05,2]
[347537480,1735907444815,-500.0,8.984e-05,2]
[347537481,1735907444824,-500.0,8.984e-05,2]
[347537482,1735907444836,-500.0,8.984e-05,2]
[347537483,1735907444845,-500.0,8.984e-05,2]
[347537484,1735907444854,-500.0,8.984e-05,2]
[347537485,1735907444863,-500.0,8.984e-05,2]
[347537486,1735907444872,-500.0,8.984e-05,2]
[347537487,1735907444881,-500.0,8.984e-05,2]
[347537488,1735907444892,-500.0,8.984e-05,2]
[347537489,1735907444901,-601.78,8.984e-05,2]
[347537490,1735907444910,-500.0,8.984e-05,2]
[347537491,1735907444919,-500.0,8.984e-05,2]
[347537492,1735907444928,-500.0,8.984e-05,2]
[347537493,1735907444937,-500.0,8.984e-05,2]
[347537494,1735907444946,-500.0,8.984e-05,2]
[347537495,1735907444955,-500.0,8.984e-05,2]
[347537496,1735907444966,-500.0,8.984e-05,2]
[347537497,1735907444976,-500.0,8.984e-05,2]
[347537498,1735907444985,-531.81,8.984e-05,2]
[347537499,1735907444994,-500.0,8.984e-05,2]
[347537500,1735907445004,-500.0,8.984e-05,2]
[347537501,1735907445013,-500.0,8.984e-05,2]
[347537502,1735907445023,-712.88,8.984e-05,2]
[347537503,1735907445035,-500.0,8.984e-05,2]
[347537504,1735907445049,-500.0,8.984e-05,2]
[347537505,1735907445061,-500.0,8.984e-05,2]
[347537506,1735907445070,-43.05875418,8.984e-05,2]
[347537507,1735907445896,-1487.64,8.983e-05,2]
[347537508,1735907445907,-456.94124582,8.984e-05,2]
[347537509,1735907445918,-500.0,8.984e-05,2]
[347537510,1735907445927,-500.0,8.984e-05,2]
[347537511,1735907445937,-500.0,8.984e-05,2]
[347537512,1735907445948,-616.34,8.984e-05,2]
[347537513,1735907445958,-500.0,8.984e-05,2]
[347537514,1735907445968,-500.0,8.984e-05,2]
[347537515,1735907445978,-500.0,8.984e-05,2]
[347537516,1735907445987,-500.0,8.984e-05,2]
[347537517,1735907445996,-500.0,8.984e-05,2]
[347537518,1735907446006,-595.45,8.984e-05,2]
[347537519,1735907446015,-1139.96,8.984e-05,2]
[347537520,1735907446025,-785.68,8.984e-05,2]
[347537521,1735907446038,-500.0,8.984e-05,2]
[347537522,1735907446047,-1.84921232,8.984e-05,2]
[347537523,1735907446059,-498.15078768,8.984e-05,2]
[347537524,1735907446068,-585.81,8.984e-05,2]
[347537525,1735907446078,-759.63,8.984e-05,2]
[347537526,1735907446088,-1836.81,8.984e-05,2]
[347537527,1735907446098,-411.42136246,8.984e-05,2]
[347537528,1735907446107,-500.0,8.984e-05,2]
[347537529,1735907446117,-689.13,8.984e-05,2]
[347537530,1735907446126,-289.50238954,8.984e-05,2]
[347537531,1735907446143,-210.49761046,8.984e-05,2]
[347537532,1735907446152,-568.66,8.984e-05,2]
[347537533,1735907446162,-500.0,8.984e-05,2]
[347537534,1735907446171,-1408.57,8.984e-05,2]
[347537535,1735907446181,-651.98,8.984e-05,2]
[347537536,1735907446191,-550.59,8.984e-05,2]
[347537537,1735907446201,-2518.36,8.984e-05,2]
[347537538,1735907446211,-795.14,8.984e-05,2]
[347537539,1735907446223,-500.0,8.984e-05,2]
[347537540,1735907446232,-500.0,8.984e-05,2]
[347537541,1735907446242,-1667.42,8.984e-05,2]
[347537542,1735907446251,-500.0,8.984e-05,2]
[347537543,1735907446260,-500.0,8.984e-05,2]
[347537545,1735907446270,-500.0,8.984e-05,2]
[347537547,1735907446279,-7954.13,8.984e-05,2]
[347537548,1735907446289,-500.0,8.984e-05,2]
[347537550,1735907446299,-1234.0,8.984e-05,2]
[347537551,1735907446307,-500.0,8.984e-05,2]
[347537552,1735907446318,-707.96,8.984e-05,2]
[347537554,1735907446326,-838.3,8.984e-05,2]
[347537555,1735907446336,-500.0,8.984e-05,2]
[347537556,1735907446345,-3397.94,8.984e-05,2]
[347537557,1735907446354,-1532.65,8.984e-05,2]
[347537558,1735907446363,-221.99768,8.984e-05,2]
[347537559,1735907446372,-500.0,8.984e-05,2]
[347537560,1735907446381,-774.6,8.984e-05,2]
[347537561,1735907446390,-500.0,8.984e-05,2]
[347537562,1735907446399,-500.0,8.984e-05,2]
[347537563,1735907446408,-4813.86,8.984e-05,2]
[347537564,1735907446417,-500.0,8.984e-05,2]
[347537565,1735907446426,-718.98,8.984e-05,2]
[347537566,1735907446435,-736.76,8.984e-05,2]
[347537567,1735907446444,-500.0,8.984e-05,2]
[347537568,1735907446454,-515.69,8.984e-05,2]
[347537569,1735907446463,-500.0,8.984e-05,2]
[347537570,1735907446472,-2854.34,8.984e-05,2]
[347537571,1735907446481,-3434.22,8.984e-05,2]
[347537572,1735907446491,-989.22,8.984e-05,2]
[347537573,1735907446500,-2353.12,8.984e-05,2]
[347537574,1735907446509,-500.0,8.984e-05,2]
[347537575,1735907446518,-3773.42,8.984e-05,2]
[347537576,1735907446527,-500.0,8.984e-05,2]
[347537577,1735907446536,-500.0,8.984e-05,2]
[347537578,1735907446545,-780.26,8.984e-05,2]
[347537579,1735907446555,-500.0,8.984e-05,2]
[347537580,1735907446564,-7078.59,8.984e-05,2]
[347537581,1735907446573,-632.86,8.984e-05,2]
[347537582,1735907446582,-796.9,8.984e-05,2]
[347537583,1735907446592,-1086.28,8.984e-05,2]
[347537584,1735907446602,-618.58,8.984e-05,2]
[347537585,1735907446611,-5620.17,8.984e-05,2]
[347537586,1735907446619,-707.11,8.984e-05,2]
[347537587,1735907446629,-500.0,8.984e-05,2]
[347537588,1735907446638,-1020.55,8.984e-05,2]
[347537589,1735907446647,-500.0,8.984e-05,2]
[347537590,1735907446657,-649.64,8.984e-05,2]
[347537591,1735907446666,-1754.88,8.984e-05,2]
[347537592,1735907446675,-1170.38,8.984e-05,2]
[347537593,1735907446684,-500.0,8.984e-05,2]
[347537594,1735907446693,-848.36,8.984e-05,2]
[347537595,1735907446703,-2355.12,8.984e-05,2]
[347537596,1735907446713,-500.0,8.984e-05,2]
[347537597,1735907446722,-811.88,8.984e-05,2]
[347537598,1735907446731,-2407.16,8.984e-05,2]
[347537599,1735907446740,-1319.91,8.984e-05,2]
[347537600,1735907446750,-1124.82,8.984e-05,2]
[347537601,1735907446759,-3236.79,8.985e-05,2]
[347537602,1735907446768,-1719.25,8.985e-05,2]
[347537603,1735907446777,-1273.94,8.985e-05,2]
[347537604,1735907446787,-500.0,8.985e-05,2]
[347537605,1735907446796,-3281.48,8.985e-05,2]
[347537606,1735907446805,-6038.08,8.985e-05,2]
[347537607,1735907446815,-4973.37,8.985e-05,2]
[347537608,1735907446825,-5628.34,8.985e-05,2]
[347537609,1735907446836,-657.17,8.986e-05,2]
[347537610,1735907446846,-1113.93,8.986e-05,2]
[347537611,1735907446855,-1640.4,8.986e-05,2]
[347537612,1735907446865,-3453.64,8.986e-05,2]
[347537613,1735907446874,-800.0,9e-05,3]
[347537614,1735907446884,-41237.75470904,9e-05,2]
[347537615,1735907446915,-2516.87912024,9e-05,2]
[347537616,1735907446996,-4671.20313441,9e-05,2]
[347537617,1735907447041,-281.74183195,9e-05,2]
[347537618,1735907447056,-625.16999995,9e-05,2]
[347537619,1735907447180,-4691.29187818,9e-05,2]
[347537620,1735907447190,-500.0,9.157e-05,2]
[347537621,1735907447199,-500.0,9.157e-05,2]
[347537622,1735907447208,-500.0,9.157e-05,2]
[347537623,1735907447218,-500.0,9.157e-05,2]
[347537624,1735907447227,-500.0,9.157e-05,2]
[347537625,1735907447237,-500.0,9.157e-05,2]